Cogmind - Beta 13 @@@ ROGUE MODE // 2024.06.03 @ 20:58:20 Player: Enzo Result: Destroyed by S-10 Pest with Light Assault Rifle Performance ------------- Evolutions (0) 0 Regions Visited (3) 600 Robots Destroyed (43) 215 Value Destroyed (1234) 1234 Prototype IDs (1) 20 Alien Tech Used (0) 0 Bonus (0) 0 TOTAL SCORE: 2069 Bonus ------- None Cogmind --------- Core Integrity 0/250 Matter 284/300 Energy 180/180 System Corruption 0% Temperature Cool (0) Movement Rolling (120) Ox1 Location -10/Subcaves Parts ------- > --- POWER (1) -------- Meta Core > --- PROPULSION (2) --- Spiked Treads Subdweller Monowheel > --- UTILITY (2) ------ Medium Storage Unit Structural Scanner > --- WEAPON (2) ------- Subdweller Beam Cannon Subdweller Machine Gun > --- INVENTORY (10) --- Subdweller Power Source Signal Interpreter Improved Terrain Scanner Makeshift Hacking Suite Beam Cannon Subdweller Beam Cannon Battle Cannon Slug Cannon Grenade Launcher Peak State ------------ > --- POWER ------------ Meta Core > --- PROPULSION ------- Light Treads Light Treads Light Treads > --- UTILITY ---------- Disposable Heat Sink Medium Storage Unit Structural Scanner > --- WEAPON ----------- Subdweller Machine Gun Slug Cannon Subdweller Shrapnel Launcher > --- INVENTORY -------- Subdweller Power Source Subdweller Monowheel Signal Interpreter Improved Terrain Scanner Subdweller Laser Heavy Assault Rifle Grenade Launcher Mining Laser [Rating: 29] Favorites ----------- Power Meta Core Engine Ion Engine Power Core Meta Core Propulsion Light Treads Treads Light Treads Wheel Subdweller Monowheel Utility Medium Storage Unit Device Structural Scanner Storage Medium Storage Unit Weapon Subdweller Machine Gun Energy Gun Medium Laser Energy Cannon Subdweller Beam Cannon Ballistic Gun Subdweller Machine Gun Ballistic Cannon Slug Cannon Launcher Subdweller Shrapnel Launcher Build | -11 -10 -10 -10 ------- Run | Yrd Mat Min Sub Slots Evolved . | . . . . Power . | . . . . Propulsion . | . . . . Utility . | . . . . Weapon . | . . . . Parts Attached 38 | 7 1 7 23 Power 2 | 1 . . 1 Engine 1 | 1 . . . Core 1 | . . . 1 Reactor . | . . . . Propulsion 16 | 2 . 2 12 Treads 6 | 2 . 2 2 Leg . | . . . . Wheel 10 | . . . 10 Hover . | . . . . Flight . | . . . . Utility 6 | 2 1 1 2 Device 4 | 1 . 1 2 Storage 2 | 1 1 . . Processor . | . . . . Hackware . | . . . . Protection . | . . . . Artifact . | . . . . Weapon 14 | 2 . 4 8 Energy Gun 4 | 1 . 2 1 Energy Cannon 3 | . . . 3 Ballistic Gun 4 | 1 . . 3 Ballistic Cannon 1 | . . 1 . Launcher 2 | . . 1 1 Special Weapon . | . . . . Impact Weapon . | . . . . Slashing Weapon . | . . . . Piercing Weapon . | . . . . Special Melee Weapon . | . . . . Unidentified Prototypes 1 | . . . 1 Parts Lost 8 | . . 3 5 Power 1 | . . . 1 Propulsion 4 | . . 1 3 Utility 1 | . . 1 . Weapon 2 | . . 1 1 Highest Loss Streak 3 | . . 3 2 To Critical Strikes . | . . . . Average Slot Usage (%) 99 | . 100 97 99 Engine 6 | . 14 14 1 Core 6 | . . . 10 Treads 19 | . 28 27 15 Wheel 8 | . . . 13 Device 13 | . 14 12 13 Storage 12 | . 14 14 12 Energy Gun 6 | . 14 13 2 Energy Cannon 5 | . . . 8 Ballistic Gun 9 | . 14 . 11 Ballistic Cannon 1 | . . . 1 Launcher 7 | . . 13 7 Naked Turns . | . . . . Heaviest Build 37 | 15 20 26 37 Greatest Support 60 | 40 40 40 60 Greatest Overweight (x) 1 | . . . 1 Average Overweight (x) . | . . . . Largest Inventory Capacity 10 | 8 10 10 10 Average Capacity 9 | 7 9 10 10 Most Carried 10 | 4 7 7 10 Average Carried 8 | 1 6 6 9 Final Capacity 10 | 8 10 10 10 Final Carried 9 | 4 7 7 9 Class Distribution -------------------- 63% | Mutant 24% | Skirmisher 7% | Scavenger-Skirmisher 4% | Scavenger-Mutant Dominant Class ---------------- Mutant | -10/Materials Mutant | -10/Mines Skirmisher | -10/Subcaves Resources | -11 -10 -10 -10 ----------- Run | Yrd Mat Min Sub Matter Collected 1144 | 282 100 125 637 Remotely . | . . . . Salvage Created 1295 | 73 334 82 806 Parts 98 | 7 27 10 54 Haulers Intercepted 1 | . 1 . . Recyclers Shooed 1 | 1 . . . Parts Field Recycled . | . . . . Retrieved Matter . | . . . . Parts Self-Destructed 9 | . . . 9 Prevented . | . . . . Kills | -11 -10 -10 -10 ------- Run | Yrd Mat Min Sub Combat Hostiles Destroyed 38 | . 10 5 23 Guns 18 | . 10 . 8 Cannons 8 | . . . 8 AOE 12 | . . 5 7 Classes Destroyed 8 | 2 4 . 2 Tunneler 2 | 1 . 1 . Hauler 1 | . 1 . . Recycler 1 | 1 . . . Watcher 1 | . 1 . . Swarmer 11 | . 6 3 2 Grunt 8 | . 4 2 2 Sentry 1 | . . . 1 Subdweller 18 | . . . 18 Best Kill Streak 4 | 2 3 3 4 Combat Bots Only 4 | . 3 3 4 Max Kills in Single Turn 3 | 1 1 3 2 Gunslinging . | . . . . Exploded 3 | . . 3 2 Melee . | . . . . Uniques/NPCs Destroyed . | . . . . Combat | -11 -10 -10 -10 -------- Run | Yrd Mat Min Sub Hostile Shots Fired 135 | . 47 17 71 Missed 36 | . 14 2 20 Damage Taken 1710 | . 354 217 1139 Core 252 | . 59 . 193 Absorbed by Shields . | . . . . Core Remaining (%) 100 | 100 . . . Volleys Fired 121 | 8 26 9 78 Largest 3 | 2 2 1 3 Hottest 150 | 70 70 50 150 Shots Fired 216 | 16 52 9 139 Gun 139 | 16 52 1 70 Cannon 56 | . . . 56 Launcher 21 | . . 8 13 Special . | . . . . Kinetic 118 | 8 26 . 84 Thermal 90 | 8 26 1 55 Explosive 8 | . . 8 . Electromagnetic . | . . . . Robot Hit Streak 17 | 10 6 12 17 Robot Miss Streak 4 | 2 3 . 4 Penetration Max . | . . . . Secondary Targets 2 | . 2 . . Max Gunslinging Chain 1 | . 1 . . Shots Hit Robots 131 | 11 31 7 82 Core Hits 61 | 3 17 7 34 Critical Kills 3 | . . . 3 Critical Parts Destroyed . | . . . . Critical Strikes 5 | . 2 . 3 Burn 2 | . 2 . . Destroy 3 | . . . 3 Melee Attacks . | . . . . Impact . | . . . . Slashing . | . . . . Piercing . | . . . . Sneak Attacks . | . . . . Combat Hostiles . | . . . . Follow-up Attacks . | . . . . Damage Inflicted 3539 | 137 422 361 2619 Guns 1518 | 137 422 12 947 Cannons 807 | . . . 807 Explosions 1214 | . . 349 865 Melee . | . . . . Ramming . | . . . . Kinetic 2001 | 50 159 . 1792 Thermal 1189 | 87 263 12 827 Explosive 349 | . . 349 . Electromagnetic . | . . . . Impact . | . . . . Slashing . | . . . . Piercing . | . . . . Highest Corruption . | . . . . Average Corruption . | . . . . Corruption Purged . | . . . . Corruption Blocked . | . . . . Overload Shots . | . . . . Overflow Damage 11 | . . . 11 Projectiles . | . . . . Explosions 11 | . . . 11 Melee . | . . . . Knockbacks 1 | . . . 1 Impact . | . . . . Kinetic 1 | . . . 1 Secondary . | . . . . Self-Inflicted Damage 47 | . . 4 43 Shots 3 | . . 1 2 Rammed . | . . . . Targets Rammed . | . . . . Kicked . | . . . . Crushed . | . . . . Highest Temperature 205 | 63 96 25 205 Average Temperature 34 | 29 33 14 58 Received Heat Transfer 689 | . 177 99 413 Siege Activations . | . . . . Robots Corrupted . | . . . . Combat Hostiles . | . . . . Parts Fried . | . . . . Impact Corruptions . | . . . . Robots Melted . | . . . . Combat Hostiles . | . . . . Parts Melted 2 | 1 1 . . Heat Transferred 2321 | 259 925 37 1100 Parts Sabotaged . | . . . . Parts Stolen . | . . . . Parts Stripped . | . . . . Power Chain Reactions . | . . . . Alert | -11 -10 -10 -10 ------- Run | Yrd Mat Min Sub Peak Influence 201 | 10 201 173 . Initial 27 | . 6 27 . Average 68 | 3 73 76 . Maximum Alert Level 1 | . 1 . . Low Security (%) 98 | 100 97 100 . Level 1 1 | . 2 . . Level 2 . | . . . . Level 3 . | . . . . Level 4 . | . . . . Level 5 . | . . . . High Security . | . . . . Max Security . | . . . . Squads Dispatched 1 | . 1 . . Investigation . | . . . . Extermination . | . . . . Reinforcement 1 | . 1 . . Assault . | . . . . Garrison . | . . . . Intercept . | . . . . Searches Triggered . | . . . . Construction Impeded . | . . . . Haulers Reinforced . | . . . . Active Scanning Responses . | . . . . Cargo Convoy Interrupts . | . . . . Stealth | -11 -10 -10 -10 --------- Run | Yrd Mat Min Sub Distress Signals . | . . . . Communications Jammed . | . . . . Distress Signals . | . . . . Times Spotted 45 | . 17 4 24 Peak Tracking Total 5 | . 5 2 3 Tactical Retreats . | . . . . Traps | -11 -10 -10 -10 ------- Run | Yrd Mat Min Sub Traps Triggered 2 | . . . 2 Indirectly . | . . . . Trap Hack Attempts . | . . . . Triggered . | . . . . Disarmed . | . . . . Reprogrammed . | . . . . Reused . | . . . . Traps Extracted . | . . . . Installed 3 | . . . 3 Triggered . | . . . . Most Traps Carried 1 | . . . 1 Machines | -11 -10 -10 -10 ---------- Run | Yrd Mat Min Sub Machines Disabled 1 | . . 1 . Max in Single Turn 1 | . . 1 . Machines Repaired . | . . . . Machines Dismantled . | . . . . Machines Sabotaged . | . . . . Overloaded Fab Kills . | . . . . Hacking | -11 -10 -10 -10 --------- Run | Yrd Mat Min Sub Machines Accessed 4 | . 3 . 1 Terminals 3 | . 3 . . Fabricators . | . . . . Repair Stations . | . . . . Recycling Units . | . . . . Scanalyzers . | . . . . Garrison Access . | . . . . Total Hacks 12 | . 9 . 3 Successful 5 | . 2 . 3 Failed 7 | . 7 . . Catastrophic 1 | . 1 . . Database Lockouts . | . . . . Manual 5 | . 5 . . Terminals 9 | . 9 . . Fabricators . | . . . . Repair Stations . | . . . . Recycling Units . | . . . . Scanalyzers . | . . . . Garrison Access . | . . . . Terminal Hacks 5 | . 2 . 3 Record 3 | . . . 3 Robot Analysis 1 | . 1 . . Locate Traps 1 | . 1 . . Fabricator Hacks . | . . . . Repair Station Hacks . | . . . . Recycling Unit Hacks . | . . . . Scanalyzer . | . . . . Garrison Access Hacks . | . . . . Unauthorized Hacks . | . . . . Terminals . | . . . . Fabricators . | . . . . Repair Stations . | . . . . Recycling Units . | . . . . Scanalyzers . | . . . . Garrison Access . | . . . . Data Cores Recovered . | . . . . Used . | . . . . Hacking Detections 3 | . 3 . . Full Trace Events 1 | . 1 . . Feedback Events . | . . . . Feedback Blocked . | . . . . Robot Schematics Acquired . | . . . . Robots Built . | . . . . Authchips . | . . . . Time . | . . . . Total Robot Build Rating . | . . . . Part Schematics Acquired . | . . . . Parts Built . | . . . . Authchips . | . . . . Time . | . . . . Total Part Build Rating . | . . . . Parts Repaired . | . . . . Time . | . . . . Parts Recycled . | . . . . Recycled Matter . | . . . . Retrieved Matter . | . . . . Retrieved Components . | . . . . Parts Scanalyzed . | . . . . Part Schematics Acquired . | . . . . Parts Damaged . | . . . . Bothacking | -11 -10 -10 -10 ------------ Run | Yrd Mat Min Sub Used RIF Installer . | . . . . Robots Hacked . | . . . . Non-combat . | . . . . Combat . | . . . . Robot Hacks Applied . | . . . . Relay Couplers Released . | . . . . Fabnet Peak Effective % . | . . . . Robots Rewired . | . . . . Allies Hacked . | . . . . Hacks Repelled . | . . . . Allies | -11 -10 -10 -10 -------- Run | Yrd Mat Min Sub Total Allies . | . . . . Largest Group . | . . . . Highest-Rated Group . | . . . . Highest-Rated Ally . | . . . . Total Orders . | . . . . Ally Attacks . | . . . . Total Damage . | . . . . Kills . | . . . . Allies Corrupted . | . . . . Allies Melted . | . . . . Intel | -11 -10 -10 -10 ------- Run | Yrd Mat Min Sub Robot Analysis Total 1 | . 1 . . Derelict Logs Recovered 3 | . . 2 1 Drone Launches . | . . . . Drone Recoveries . | . . . . Exploration | -11 -10 -10 -10 ------------- Run | Yrd Mat Min Sub Turns Passed 4212 | 141 727 752 2592 Spaces Moved 2678 | 68 394 447 1769 Core 10 | 10 . . . Treads 1461 | 58 394 447 562 Legs . | . . . . Wheels 1207 | . . . 1207 Hover . | . . . . Flight . | . . . . Fastest Speed 50 | 50 160 160 110 Average Speed 138 | 143 160 160 128 Slowest Speed 160 | 160 160 160 160 Overloaded Moves . | . . . . Propulsion Burnouts . | . . . . Robots Hopped . | . . . . Cave-ins Triggered . | . . . . Exploration Rate (%) 62 | 5 63 91 92 Regions Visited 3 Branch Regions 2 Pre-discovered Areas 2 | . . . 2 Known Exits Taken . | . . . . Unknown Exits Taken 3 | 1 1 1 . Scrap Searched 13 | . . 1 12 Spaces Dug 64 | . . . 64 Terrain Destroyed 210 | . . 39 171 Melee . | . . . . Projectile 13 | . . . 13 AOE 197 | . . 39 158 Terrain Rammed . | . . . . Walls Destroyed . | . . . . Machines Disabled . | . . . . Actions | -11 -10 -10 -10 --------- Run | Yrd Mat Min Sub Total 2959 | 92 439 475 1953 Wait 68 | 6 15 4 43 Move 2675 | 67 393 446 1769 Hop . | . . . . Pick Up 27 | 4 3 5 15 Fast Attach 18 | 7 . 1 10 Attach 8 | . . 3 5 Detach . | . . . . Swap 12 | . 1 3 8 Drop 27 | . 1 4 22 Fire 121 | 8 26 9 78 Melee . | . . . . Ram . | . . . . Kick . | . . . . Crush . | . . . . Escape Stasis . | . . . . Rewire . | . . . . Trap 3 | . . . 3 Miscellaneous . | . . . . Route ------- -11/Scrapyard -10/Materials (discovered 3 exits: *Mat / [*Min x2]) -10/Mines (discovered 3 exits: *Mat x2 / *Sub) -10/Subcaves (discovered 2 exits: [*Mat x2]) History --------- Turn | Location | Event 3 | -11/Scrapyard | Discovered new exit (range 16) 142 | -11/Scrapyard | Entered Materials 157 | -10/Materials | Discovered new exit (range 12) 336 | -10/Materials | Build established: Mutant 349 | -10/Materials | Discovered new exit (range 5) 534 | -10/Materials | Discovered new exit (range 15) 869 | -10/Materials | Entered Mines 935 | -10/Mines | Lost 3 parts (1n1u1w) 1058 | -10/Mines | Discovered new exit (range 10) 1151 | -10/Mines | Joined a pair of Derelicts in attacking an 0b10 outpost 1376 | -10/Mines | A weapon hastily lodged in a ceiling crevice suddenly fell to the ground 1500 | -10/Mines | Learned Materials emergency access door positions 1567 | -10/Mines | Identified exit to Materials 1586 | -10/Mines | Discovered new exit (range 7) 1621 | -10/Mines | Entered Subcaves 1679 | -10/Subcaves | Learned location of Mines (-10) 1694 | -10/Subcaves | Shifting Twisted Machinery released Sub. Shrapnel Launcher 1698 | -10/Subcaves | Shifting Twisted Machinery released Sub. Machine Gun 1749 | -10/Subcaves | Discovered new exit (range 11) 1786 | -10/Subcaves | Visited Clippyterm 1791 | -10/Subcaves | Learned Research machine intel 1816 | -10/Subcaves | Learned location of Zion (-6) 1816 | -10/Subcaves | Met a Zionite searching for "candidates" 1901 | -10/Subcaves | A Subdweller sparked back to life 1901 | -10/Subcaves | A Subdweller sparked back to life 1928 | -10/Subcaves | Found Prototype Power Core 1928 | -10/Subcaves | Identified Meta Core 1930 | -10/Subcaves | Attached Meta Core, gained temporary slots: Propulsion, Utility, Weapon 2199 | -10/Subcaves | Ambushed by Subdweller buried in earth 2201 | -10/Subcaves | Ambushed by Subdweller buried in earth 2229 | -10/Subcaves | Build established: Scavenger-Skirmisher 2264 | -10/Subcaves | Shifting Twisted Machinery released Piercing Trap 2349 | -10/Subcaves | Shifting Twisted Machinery released Sub. Beam Cannon 2382 | -10/Subcaves | Shifting Twisted Machinery released Mak. Hacking Suite 2535 | -10/Subcaves | Build established: Skirmisher 2628 | -10/Subcaves | Core integrity fell below 50% 2842 | -10/Subcaves | Discovered new exit (range 6) 3035 | -10/Subcaves | Disturbed a concealed Subdweller 3085 | -10/Subcaves | A swath of the cavern ceiling suddenly collapsed 3113 | -10/Subcaves | A swath of the cavern ceiling suddenly collapsed 3384 | -10/Subcaves | Core integrity fell below 20% 3886 | -10/Subcaves | Build established: Mutant 4135 | -10/Subcaves | Disturbed a concealed Subdweller 4213 | -10/Subcaves | Destroyed by S-10 Pest with Light Assault Rifle Last Messages --------------- 04131_ Searching scrap... 04131_ Found Mak. Flight Unit. 04131_ Found Piercing Trap. 04131_ Found 23 Matter. 04135_ TV-SWZ(R) angrily emerges from the Twisted Machinery. 04135_ TV-SWZ(R) destroyed. 04138_ Searching scrap... 04138_ Found Battle Rifle. 04138_ Found Sub. Power Source. 04138_ Found 32 Matter. 04139_ Acquired 2 matter. 04139_ Searching scrap... 04139_ Found Mak. System Shield. 04139_ Found Scrap Shield. 04139_ Found 17 Matter. 04142_ Sub. Monowheel shoots sparks and powers down. 04163_ Dropped Broken Sub. Monowheel. 04211_ Y-45 Defender destroyed. Map ----- +----------------------------------------------------+ | ??????????????????????????????## ###### ## | | ??????????????????????????????## ## ######### | | ??????????????????????????????######! ##### | | ??????????????????????????????####### ! ##### | | ??????????????????????????????????#### ##### | | ???????????????????????????????????#### "### | | ????????????????????????????????????#### """ | | ?????????????????????????????????????###" "" | | ??????????????????????????????????????##" | | ??????????????????????????????????????##"" | | ??????????????????????????????????????## "" | | ??????????????????????????????????????## " | | ??????????????????????????????????????###### " | | ??????????????????????????????????????######" | | ??????????????????????????????????????????### | | ??????????????????????????????????????????## ## | | ??????????????????????????????????????????## ### | | ??????????????????????????????????????????###### | | #?????????????????????????????????????????####### | | #???????????????????????############???#####??#### | | ###????????????????????########################### | | ####???????????????????### ## ##### ###### | | ###??????????????###?### ### #### | | ##??????????????## ?#### #### | | ##??????????????## # #### | | ###??????????????## @ ## ## # | | ####?????????????#### ##### ### | | ###??????????????## !!=s# # ##### #### | | ###??????????????## *%!&##### ##### ##### | | ##??????????????## [ ##### ##### #### | | ###?????????????## ?????### ####"" | | ###?????????????## ?????## | | ##?????????????#####?????## | | ##?????????????#####?????## ## ### | | ###???????????????????????## ######### | | ###???????????????????????### #### ## | | ###????????????????????????### # | | ###?????????????????????????## ## # < | | ##??????????????????????????## ### " # | | #???????????????????????????## ######### """"## | | #???????????????????????????### ########## " "## | | #???????????????????????????########?????## ""## | | ####???????????????????????###########???## ""## | | ####???????????????????????###########???## """# | | # ##???????????????????????## ## ###??### ""## | | ##?????????????????????????? ######### ## | | ##???????????????????????????## ######## ## | | ##?????????????????????????#### ### ## | | ##????????????????????????##### ## | | ####?#######??????????????### ## | +----------------------------------------------------+ Best States ------------- Heat Dissipation 25 Coolant Potential 50 Energy Generation 17 Energy Capacity 250 Matter Stores 300 Matter Capacity 300 Sight Range 16 Terrain Scan Density 10 Evasion (%) 40 Recoil Reduction 3 Item Schematics ----------------- None Robot Schematics ------------------ None Fabricated ------------ Nothing Alien Tech Used ----------------- None Achievements -------------- None Challenges ------------ None Game ------ Seed LightpackTractorInterrupter Manual? 0 Play Time 00:32:12 Cumulative 69.2 hours Start 2024.06.03 @ 20:26:42 End 2024.06.03 @ 20:58:20 Sessions 1 Manual Loads 0 Difficulty Rogue Special Mode None Game No. 146 Rogue 146 Adventurer 0 Explorer 0 Win Type - Total 0 Types 0/0/0/0/0/0/0/0/0 Lore% 41 Gallery% 45 Achievement% 38 Wizard Run 0 Options --------- Layout 1 ASCII 0 Keyboard 0 Movement Numpad Keybinds 0 Fullscreen 2 Font 32/SmallcapsGlow Map View 50x35 Zoom Use 0% Tactical HUD 1 Map Filters NONE Filters NONE Steam 1 RUN: ad8f84ea-35f9-495c-9e1a-b4273d5296c1